fUSD/lending_fUSD_20240826
["ID","MTS","AMOUNT","RATE_DAILY","PERIOD"]
[335959876,1724643741602,1000.0,9.59e-05,2]
[335959878,1724643796366,241.29,9.777e-05,2]
[335959879,1724643813358,197.76,9.775e-05,2]
[335959881,1724643904034,169.74,9.769e-05,2]
[335959882,1724643977782,1050.0,0.0001,2]
[335959883,1724644025969,268.82253539,9.997e-05,2]
[335959884,1724644057113,2146.94259288,0.00010009,2]
[335959885,1724644057737,575.26,8.219e-05,2]
[335959887,1724644065745,1140.57205727,0.00010009,2]
[335959897,1724644115623,200.0,9.758e-05,2]
[335959903,1724644131204,1758.06296434,0.00010009,2]
[335959905,1724644162125,155.0,0.00010009,2]
[335959906,1724644163519,173.05764365,0.00010009,2]
[335959908,1724644175471,361.31410626,0.00010009,2]
[335959909,1724644227385,366.82836838,0.00010009,2]
[335959930,1724644231905,-331.73710715,0.00010026,2]
[335959931,1724644231916,-155.0,0.00010026,2]
[335959932,1724644231926,-90.35239767,0.00010097,2]
[335959933,1724644231938,-252.62126141,0.00010097,2]
[335959934,1724644231950,-237.36507449,0.00010097,2]
[335959935,1724644231960,-1108.301799,0.00010314,2]
[335959936,1724644231971,-72.61977137,0.00010463,2]
[335959937,1724644231983,-502.64022863,0.00010463,2]
[335959938,1724644231992,-300.0,0.00010504,2]
[335959939,1724644232002,-150.0,0.00010699,2]
[335959940,1724644232011,-300.0,0.00010699,2]
[335959941,1724644232021,-300.0,0.00010699,2]
[335959942,1724644232031,-205.12856602,0.000107,2]
[335959943,1724644232042,-349.70936002,0.000107,2]
[335959944,1724644232055,-472.04,0.000107,2]
[335959945,1724644232066,-3826.9705267,0.000107,2]
[335959946,1724644232078,-8592.920943,0.000107,2]
[335959947,1724644232089,-8859.07160426,0.000107,2]
[335959948,1724644232098,-6880.78199321,0.000107,2]
[335959949,1724644232110,-619.21800679,0.000107,2]
[335959950,1724644232119,-3249.82916381,0.00010701,2]
[335959951,1724644232137,-14714.44083619,0.00010701,2]
[335959952,1724644232148,-717.86422752,0.00010701,2]
[335959953,1724644232159,-12552.98142732,0.00010701,2]
[335959954,1724644232170,-909.3594811,0.00010701,2]
[335959955,1724644232182,-5369.99486406,0.00010701,2]
[335959956,1724644232192,-150.0,0.00010727,2]
[335959957,1724644232201,-150.0,0.00010728,2]
[335959958,1724644232212,-150.0,0.00010728,2]
[335959959,1724644232222,-151.72,0.00010731,2]
[335959960,1724644232232,-150.0,0.00010731,2]
[335959961,1724644232242,-150.0,0.00010733,2]
[335959962,1724644232251,-150.0,0.00010738,2]
[335959963,1724644232260,-150.0,0.00010739,2]
[335959964,1724644232270,-150.0,0.00010745,2]
[335959965,1724644232279,-150.0,0.00010755,2]
[335959966,1724644232288,-150.0,0.00010765,2]
[335959967,1724644232298,-150.0,0.00010766,2]
[335959968,1724644232307,-200.0,0.00010773,2]
[335959969,1724644232464,-150.0,0.00010773,2]
[335959970,1724644232474,-150.0,0.00010773,2]
[335959971,1724644232484,-150.0,0.00010779,2]
[335959972,1724644232495,-150.0,0.0001078,2]
[335959973,1724644232505,-150.0,0.0001078,2]
[335959974,1724644232515,-150.0,0.00010781,2]
[335959975,1724644232524,-150.0,0.00010782,2]
[335959976,1724644232535,-150.0,0.00010782,2]
[335959977,1724644232546,-150.0,0.00010784,2]
[335959978,1724644232556,-150.0,0.00010786,2]
[335959979,1724644232566,-150.0,0.00010787,2]
[335959980,1724644232576,-500.0,0.00010798,2]
[335959981,1724644232585,-500.0,0.00010798,2]
[335959982,1724644232594,-546.13100028,0.00010798,2]
[335959983,1724644232604,-500.0,0.00010799,2]
[335959984,1724644232613,-150.0,0.00010799,2]
[335959985,1724644232623,-500.0,0.00010799,2]
[335959986,1724644232633,-500.0,0.00010799,2]
[335959987,1724644232642,-500.0,0.00010799,2]
[335959988,1724644232651,-500.0,0.00010799,2]
[335959989,1724644232661,-500.0,0.00010799,2]
[335959990,1724644232670,-500.0,0.00010799,2]
[335959991,1724644232680,-1738.2,0.00010799,2]
[335959992,1724644232691,-500.0,0.00010799,2]
[335959993,1724644232701,-573.54224282,0.00010799,2]
[335959994,1724644232710,-531.56711479,0.00010799,2]
[335959995,1724644232720,-641.21302538,0.00010799,2]
[335959996,1724644232729,-18360.11,0.00010799,2]
[335959997,1724644232738,-500.0,0.00010799,2]
[335959998,1724644232748,-558.2926101,0.00010799,2]
[335959999,1724644232757,-500.0,0.00010799,2]
[335960000,1724644232767,-5138.21,0.00010799,2]
[335960001,1724644232776,-481.55683389,0.00010799,2]
[335960002,1724644232787,-1001.98,0.00010799,2]
[335960004,1724644232799,-494.51459853,0.00010799,2]
[335960005,1724644232808,-500.0,0.00010799,2]
[335960006,1724644232818,-840.76,0.00010799,2]
[335960007,1724644232827,-536.96,0.00010799,2]
[335960008,1724644232837,-626.55556644,0.00010799,2]
[335960009,1724644232846,-500.0,0.00010799,2]
[335960010,1724644232856,-10912.68,0.00010799,2]
[335960011,1724644232865,-627.84,0.00010799,2]
[335960012,1724644232874,-500.0,0.00010799,2]
[335960013,1724644232883,-791.83,0.00010799,2]
[335960014,1724644232893,-2542.53,0.00010799,2]
[335960015,1724644232902,-4023.48,0.00010799,2]
[335960016,1724644232911,-4111.63,0.00010799,2]
[335960017,1724644232921,-826.03,0.00010799,2]
[335960018,1724644232932,-500.0,0.00010799,2]
[335960019,1724644232942,-500.0,0.00010799,2]
[335960020,1724644232951,-500.0,0.00010799,2]
[335960021,1724644232961,-9557.35,0.00010799,2]
[335960022,1724644232971,-1015.46,0.00010799,2]
[335960023,1724644232980,-3463.03,0.00010799,2]
[335960024,1724644232990,-203.45070407,0.00010799,2]
[335960025,1724644233000,-500.0,0.00010799,2]
[335960026,1724644233009,-12440.62,0.00010799,2]
[335960027,1724644233020,-4408.49,0.00010799,2]
[335960028,1724644233030,-963.87,0.00010799,2]
[335960029,1724644233040,-2801.02,0.00010799,2]
[335960030,1724644233049,-500.0,0.00010799,2]
[335960031,1724644233059,-500.0,0.00010799,2]
[335960032,1724644233069,-8828.59,0.00010799,2]
[335960033,1724644233078,-500.0,0.00010799,2]
[335960034,1724644233088,-500.0,0.00010799,2]
[335960035,1724644233098,-584.58,0.00010799,2]
[335960036,1724644233108,-3837.74,0.00010799,2]
[335960037,1724644233118,-500.0,0.00010799,2]
[335960038,1724644233127,-500.0,0.00010799,2]
[335960039,1724644233136,-500.0,0.00010799,2]
[335960040,1724644233144,-500.0,0.00010799,2]
[335960041,1724644233154,-6532.23,0.00010799,2]
[335960042,1724644233163,-7896.94,0.00010799,2]
[335960043,1724644233172,-509.15,0.00010799,2]
[335960044,1724644233181,-509.15,0.00010799,2]
[335960045,1724644233191,-2162.9,0.00010799,2]
[335960046,1724644233200,-500.0,0.00010799,2]
[335960047,1724644233210,-500.0,0.00010799,2]
[335960048,1724644233219,-1255.96,0.00010799,2]
[335960049,1724644233229,-1255.96,0.00010799,2]
[335960050,1724644233239,-1401.75,0.00010799,2]
[335960051,1724644233248,-4740.01,0.00010799,2]
[335960052,1724644233258,-500.0,0.00010799,2]
[335960053,1724644233267,-500.0,0.00010799,2]
[335960054,1724644233277,-500.0,0.00010799,2]
[335960055,1724644233286,-500.0,0.00010799,2]
[335960056,1724644233295,-2398.07,0.00010799,2]
[335960057,1724644233304,-500.0,0.00010799,2]
[335960058,1724644233313,-2398.07,0.00010799,2]
[335960059,1724644233323,-623.57,0.00010799,2]
[335960060,1724644233332,-2269.86,0.00010799,2]
[335960061,1724644233341,-500.0,0.00010799,2]
[335960062,1724644233350,-500.0,0.00010799,2]
[335960063,1724644233359,-500.0,0.00010799,2]
[335960064,1724644233368,-1592.63,0.00010799,2]
[335960065,1724644233377,-500.0,0.00010799,2]
[335960066,1724644233387,-500.0,0.00010799,2]
[335960067,1724644233396,-500.0,0.00010799,2]
[335960068,1724644233405,-8433.09,0.00010799,2]
[335960069,1724644233414,-500.0,0.00010799,2]
[335960070,1724644233424,-585.03,0.00010799,2]
[335960071,1724644233434,-8433.09,0.00010799,2]
[335960072,1724644233444,-500.0,0.00010799,2]
[335960073,1724644233453,-500.0,0.00010799,2]
[335960074,1724644233462,-500.0,0.00010799,2]
[335960075,1724644233472,-500.0,0.00010799,2]
[335960076,1724644233481,-552.22,0.00010799,2]
[335960077,1724644233490,-500.0,0.00010799,2]
[335960079,1724644233500,-2863.61,0.00010799,2]
[335960080,1724644233510,-2863.61,0.00010799,2]
[335960081,1724644233519,-500.0,0.00010799,2]
[335960082,1724644233529,-500.0,0.00010799,2]
[335960083,1724644233541,-500.0,0.00010799,2]
[335960084,1724644233551,-566.03,0.00010799,2]
[335960085,1724644233561,-2530.38,0.00010799,2]
[335960086,1724644233573,-2530.38,0.00010799,2]
[335960087,1724644233583,-500.0,0.00010799,2]
[335960088,1724644233593,-613.12,0.00010799,2]
[335960089,1724644233603,-500.0,0.00010799,2]
[335960090,1724644233614,-500.0,0.00010799,2]
[335960091,1724644233623,-1280.57,0.00010799,2]
[335960092,1724644233633,-1280.57,0.00010799,2]
[335960093,1724644233643,-931.04,0.00010799,2]
[335960094,1724644233653,-545.26,0.00010799,2]
[335960095,1724644233662,-4841.7,0.00010799,2]
[335960096,1724644233671,-500.0,0.00010799,2]
[335960097,1724644233681,-599.44,0.00010799,2]
[335960098,1724644233690,-599.44,0.00010799,2]
[335960099,1724644233700,-306.05837589,0.00010799,2]
[335960100,1724644233710,-726.21,0.00010799,2]
[335960101,1724644233719,-1039.91,0.00010799,2]
[335960102,1724644233729,-500.0,0.00010799,2]
[335960103,1724644233739,-500.0,0.00010799,2]
[335960104,1724644233748,-3080.23,0.00010799,2]
[335960105,1724644233757,-677.96,0.00010799,2]
[335960106,1724644233767,-500.0,0.00010799,2]
[335960107,1724644233776,-773.1,0.00010799,2]
[335960108,1724644233788,-500.0,0.00010799,2]
[335960109,1724644233800,-1039.11,0.00010799,2]
[335960110,1724644233810,-500.0,0.00010799,2]
[335960111,1724644233819,-500.0,0.00010799,2]
[335960112,1724644233829,-4593.3,0.00010799,2]
[335960113,1724644233838,-500.0,0.00010799,2]
[335960114,1724644233848,-500.0,0.00010799,2]
[335960115,1724644233857,-500.0,0.00010799,2]
[335960116,1724644233867,-1113.21,0.00010799,2]
[335960117,1724644233878,-155.94399844,0.000108,2]
[335960118,1724644233888,-50871.02929042,0.000108,2]
[335960119,1724644233906,-493.5770007,0.000108,2]
[335960120,1724644233918,-264.82796935,0.000108,2]
[335960122,1724644237835,-1086.35359803,0.00010799,2]
[335960123,1724644237899,-16508.75640197,0.00010799,2]
[335960124,1724644237910,-960.23,0.00010799,2]
[335960125,1724644237919,-145087.49903953,0.000108,2]
[335960126,1724644237928,-82030.1636,0.000108,2]
[335960127,1724644237938,-150.0,0.00010801,2]
[335960128,1724644237947,-150.0,0.00010802,2]
[335960129,1724644237957,-150.0,0.00010806,2]
[335960130,1724644237966,-150.0,0.00010809,2]
[335960131,1724644237976,-150.0,0.00010828,2]
[335960132,1724644237985,-150.0,0.00010836,2]
[335960133,1724644237994,-150.0,0.00010839,2]
[335960134,1724644238006,-150.0,0.00010845,2]
[335960135,1724644238015,-150.0,0.00010859,2]
[335960136,1724644238025,-150.0,0.00010859,2]
[335960137,1724644238035,-150.0,0.00010869,2]
[335960138,1724644238044,-150.0,0.00010869,2]
[335960139,1724644238053,-300.0,0.00010872,2]
[335960140,1724644238063,-150.0,0.00010874,2]
[335960141,1724644238072,-150.0,0.00010876,2]
[335960142,1724644238082,-150.0,0.00010877,2]
[335960143,1724644238092,-150.0,0.0001088,2]
[335960144,1724644238101,-150.0,0.00010881,2]
[335960145,1724644238110,-1290.00522,0.0001089,2]
[335960146,1724644238120,-150.0,0.00010891,2]
[335960147,1724644238129,-150.0,0.00010891,2]
[335960148,1724644238138,-2542.53,0.00010898,2]
[335960149,1724644238148,-826.03,0.00010898,2]
[335960150,1724644238158,-3463.03,0.00010898,2]
[335960151,1724644238168,-2801.02,0.00010898,2]
[335960152,1724644238178,-6532.23,0.00010898,2]
[335960153,1724644238188,-4740.01,0.00010898,2]
[335960154,1724644238198,-585.03,0.00010898,2]
[335960155,1724644238208,-500.0,0.00010898,2]
[335960156,1724644238218,-500.0,0.00010898,2]
[335960157,1724644238227,-500.0,0.00010898,2]
[335960158,1724644238237,-726.21,0.00010898,2]
[335960159,1724644238246,-3080.23,0.00010898,2]
[335960160,1724644238255,-4593.3,0.00010898,2]
[335960161,1724644238264,-17595.11,0.00010898,2]
[335960162,1724644238274,-425.9131,0.00010898,2]
[335960163,1724644238285,-171.17415424,0.00010899,2]
[335960165,1724644238295,-161.2633047,0.00010899,2]
[335960166,1724644238304,-161.26330465,0.00010899,2]
[335960168,1724644238314,-161.26330465,0.00010899,2]
[335960170,1724644238323,-161.26330465,0.00010899,2]
[335960172,1724644238335,-161.26330465,0.00010899,2]
[335960174,1724644238346,-161.26330465,0.00010899,2]
[335960176,1724644238356,-161.26330465,0.00010899,2]
[335960177,1724644238365,-161.26330465,0.00010899,2]
[335960178,1724644238375,-161.26330465,0.00010899,2]
[335960179,1724644238385,-171.17415423,0.00010899,2]
[335960181,1724644238394,-171.17415423,0.000109,2]
[335960183,1724644238403,-171.17415423,0.000109,2]
[335960185,1724644238412,-150.0,0.000109,2]
[335960187,1724644238422,-1290.00522,0.000109,2]
[335960188,1724644238432,-161.26330465,0.000109,2]
[335960190,1724644238441,-1005.0,0.000109,2]
[335960192,1724644238451,-150.0,0.00010906,2]
[335960194,1724644238460,-150.0,0.0001091,2]
[335960196,1724644238470,-150.0,0.00010912,2]
[335960198,1724644238479,-500.0,0.00010912,2]
[335960200,1724644238489,-150.0,0.00010915,2]
[335960202,1724644238499,-150.0,0.00010925,2]
[335960204,1724644238509,-150.0,0.00010931,2]
[335960206,1724644238519,-1290.00522,0.0001094,2]
[335960208,1724644238528,-150.0,0.00010942,2]
[335960210,1724644238538,-150.0,0.00010948,2]
[335960212,1724644238548,-150.0,0.00010952,2]
[335960214,1724644238558,-150.0,0.00010956,2]
[335960216,1724644238568,-150.0,0.00010957,2]
[335960218,1724644238578,-324.12840728,0.00010958,2]
[335960220,1724644238587,-500.0,0.00010958,2]
[335960222,1724644238596,-471.58178596,0.00010958,2]
[335960224,1724644238605,-207.06,0.00010959,2]
[335960226,1724644238614,-154.67,0.00010959,2]
[335960228,1724644238623,-500.0,0.0001096,2]
[335960230,1724644238632,-1000.0,0.0001096,2]
[335960232,1724644238642,-1000.0,0.0001096,2]
[335960234,1724644238653,-150.0,0.00010964,2]
[335960236,1724644238663,-150.0,0.00010964,2]
[335960238,1724644238672,-150.0,0.00010972,2]
[335960240,1724644238681,-500.0,0.00010973,2]
[335960242,1724644238691,-150.0,0.00010976,2]
[335960244,1724644238702,-150.0,0.00010978,2]
[335960246,1724644238711,-200.0,0.00010978,2]
[335960248,1724644238721,-1290.00521,0.0001098,2]
[335960250,1724644238731,-150.0,0.00010988,2]
[335960252,1724644238741,-150.0,0.00010991,2]
[335960254,1724644238750,-150.0,0.00010991,2]
[335960256,1724644238759,-153.25791357,0.00010994,2]
[335960258,1724644238770,-150.0,0.00010996,2]
[335960260,1724644238779,-462.45543718,0.00010996,2]
[335960262,1724644238790,-228.60955333,0.00010996,2]
[335960264,1724644238801,-500.0,0.00010997,2]
[335960266,1724644238810,-500.0,0.00010997,2]
[335960268,1724644238819,-162.04721427,0.00010997,2]
[335960269,1724644238831,-500.0,0.00010997,2]
[335960272,1724644238840,-500.0,0.00010997,2]
[335960274,1724644238852,-500.0,0.00010997,2]
[335960276,1724644238861,-5138.21,0.00010997,2]
[335960278,1724644238873,-500.0,0.00010997,2]
[335960293,1724644239024,-10912.68,0.00010997,2]
[335960295,1724644239034,-500.0,0.00010997,2]
[335960297,1724644239043,-2542.53,0.00010997,2]
[335960299,1724644239052,-2542.53,0.00010997,2]
[335960301,1724644239061,-826.03,0.00010997,2]
[335960303,1724644239071,-826.03,0.00010997,2]
[335960305,1724644239080,-500.0,0.00010997,2]
[335960307,1724644239090,-1015.46,0.00010997,2]
[335960309,1724644239099,-3463.03,0.00010997,2]
[335960310,1724644239108,-3463.03,0.00010997,2]
[335960312,1724644239118,-963.87,0.00010997,2]
[335960314,1724644239127,-2801.02,0.00010997,2]
[335960316,1724644239136,-2801.02,0.00010997,2]
[335960318,1724644239145,-500.0,0.00010997,2]
[335960320,1724644239155,-500.0,0.00010997,2]
[335960322,1724644239164,-500.0,0.00010997,2]
[335960323,1724644239173,-500.0,0.00010997,2]
[335960326,1724644239182,-500.0,0.00010997,2]
[335960328,1724644239192,-500.0,0.00010997,2]
[335960330,1724644239202,-174.12104854,0.00010997,2]
[335960332,1724644239211,-3837.74,0.00010997,2]
[335960334,1724644239221,-500.0,0.00010997,2]
[335960336,1724644239230,-500.0,0.00010997,2]
[335960338,1724644239239,-500.0,0.00010997,2]
[335960339,1724644239248,-500.0,0.00010997,2]
[335960342,1724644239258,-500.0,0.00010997,2]
[335960343,1724644239268,-500.0,0.00010997,2]
[335960345,1724644239276,-226.48305805,0.00010997,2]
[335960347,1724644239285,-7896.94,0.00010997,2]
[335960349,1724644239294,-6532.23,0.00010997,2]
[335960351,1724644239304,-6532.23,0.00010997,2]
[335960353,1724644239313,-509.15,0.00010997,2]
[335960356,1724644239324,-509.15,0.00010997,2]
[335960358,1724644239334,-509.15,0.00010997,2]
[335960360,1724644239343,-509.15,0.00010997,2]
[335960362,1724644239352,-500.0,0.00010997,2]
[335960364,1724644239361,-500.0,0.00010997,2]
[335960365,1724644239370,-485.01052885,0.00010997,2]
[335960367,1724644239379,-1255.96,0.00010997,2]
[335960369,1724644239389,-1255.96,0.00010997,2]
[335960371,1724644239398,-1255.96,0.00010997,2]
[335960373,1724644239407,-1255.96,0.00010997,2]
[335960375,1724644239416,-4740.01,0.00010997,2]
[335960377,1724644239425,-4740.01,0.00010997,2]
[335960379,1724644239434,-500.0,0.00010997,2]
[335960380,1724644239443,-500.0,0.00010997,2]
[335960382,1724644239453,-500.0,0.00010997,2]
[335960385,1724644239462,-500.0,0.00010997,2]
[335960387,1724644239472,-500.0,0.00010997,2]
[335960388,1724644239481,-500.0,0.00010997,2]
[335960390,1724644239490,-2398.07,0.00010997,2]
[335960392,1724644239499,-500.0,0.00010997,2]
[335960394,1724644239509,-500.0,0.00010997,2]
[335960396,1724644239518,-2398.07,0.00010997,2]
[335960398,1724644239527,-2398.07,0.00010997,2]
[335960401,1724644239537,-2398.07,0.00010997,2]
[335960403,1724644239546,-2269.86,0.00010997,2]
[335960405,1724644239556,-500.0,0.00010997,2]
[335960407,1724644239565,-500.0,0.00010997,2]
[335960408,1724644239575,-500.0,0.00010997,2]
[335960410,1724644239584,-500.0,0.00010997,2]
[335960412,1724644239594,-500.0,0.00010997,2]
[335960414,1724644239603,-500.0,0.00010997,2]
[335960416,1724644239612,-500.0,0.00010997,2]
[335960418,1724644239622,-500.0,0.00010997,2]
[335960420,1724644239631,-500.0,0.00010997,2]
[335960422,1724644239641,-8433.09,0.00010997,2]
[335960424,1724644239650,-500.0,0.00010997,2]
[335960425,1724644239659,-585.03,0.00010997,2]
[335960427,1724644239668,-8433.09,0.00010997,2]
[335960429,1724644239677,-500.0,0.00010997,2]
[335960431,1724644239687,-585.03,0.00010997,2]
[335960433,1724644239696,-8433.09,0.00010997,2]
[335960435,1724644239706,-406.32258763,0.00010997,2]
[335960437,1724644239715,-8433.09,0.00010997,2]
[335960439,1724644239724,-500.0,0.00010997,2]
[335960441,1724644239733,-500.0,0.00010997,2]
[335960443,1724644239743,-536.04379488,0.00010997,2]
[335960445,1724644239752,-500.0,0.00010997,2]
[335960447,1724644239761,-500.0,0.00010997,2]
[335960449,1724644239770,-500.0,0.00010997,2]
[335960451,1724644239779,-500.0,0.00010997,2]
[335960453,1724644239790,-2863.61,0.00010997,2]
[335960455,1724644239801,-2863.61,0.00010997,2]
[335960458,1724644239810,-500.0,0.00010997,2]
[335960460,1724644239819,-2863.61,0.00010997,2]
[335960461,1724644239828,-500.0,0.00010997,2]
[335960463,1724644239838,-2863.61,0.00010997,2]
[335960465,1724644239848,-500.0,0.00010997,2]
[335960467,1724644239858,-500.0,0.00010997,2]
[335960469,1724644239869,-151.53354041,0.00010997,2]
[335960471,1724644239879,-2530.38,0.00010997,2]
[335960473,1724644239888,-2530.38,0.00010997,2]
[335960475,1724644239897,-2530.38,0.00010997,2]
[335960477,1724644239907,-500.0,0.00010997,2]
[335960479,1724644239916,-2530.38,0.00010997,2]
[335960481,1724644239927,-500.0,0.00010997,2]
[335960483,1724644239936,-500.0,0.00010997,2]
[335960485,1724644239946,-500.0,0.00010997,2]
[335960487,1724644239955,-500.0,0.00010997,2]
[335960489,1724644239964,-500.0,0.00010997,2]
[335960490,1724644239974,-1280.57,0.00010997,2]
[335960493,1724644239985,-1280.57,0.00010997,2]
[335960494,1724644239994,-1280.57,0.00010997,2]
[335960496,1724644240003,-1280.57,0.00010997,2]
[335960498,1724644240013,-931.04,0.00010997,2]
[335960499,1724644240028,-500.0,0.00010997,2]
[335960501,1724644240037,-500.0,0.00010997,2]
[335960503,1724644240048,-599.44,0.00010997,2]
[335960505,1724644240057,-599.44,0.00010997,2]
[335960507,1724644240066,-599.44,0.00010997,2]
[335960509,1724644240075,-599.44,0.00010997,2]
[335960510,1724644240084,-726.21,0.00010997,2]
[335960512,1724644240093,-726.21,0.00010997,2]
[335960514,1724644240102,-500.0,0.00010997,2]
[335960516,1724644240111,-3080.23,0.00010997,2]
[335960518,1724644240120,-3080.23,0.00010997,2]
[335960520,1724644240130,-500.0,0.00010997,2]
[335960521,1724644240139,-500.0,0.00010997,2]
[335960523,1724644240148,-4593.3,0.00010997,2]
[335960525,1724644240157,-4593.3,0.00010997,2]
[335960527,1724644240166,-17595.11,0.00010997,2]
[335960529,1724644240176,-17595.11,0.00010997,2]
[335960531,1724644240185,-197.76,0.00010997,2]
[335960533,1724644240194,-153.25791357,0.00010997,2]
[335960535,1724644240204,-500.0,0.00010998,2]
[335960537,1724644240213,-500.0,0.00010998,2]
[335960539,1724644240222,-374.41635475,0.00010998,2]
[335960541,1724644240232,-150.0,0.00010998,2]
[335960543,1724644240242,-500.0,0.00010998,2]
[335960545,1724644240251,-500.0,0.00010998,2]
[335960547,1724644240260,-150.49631115,0.00010998,2]
[335960549,1724644240269,-599.00650567,0.00010998,2]
[335960551,1724644240278,-500.0,0.00010998,2]
[335960553,1724644240287,-500.0,0.00010998,2]
[335960555,1724644240297,-500.0,0.00010998,2]
[335960557,1724644240306,-500.0,0.00010998,2]
[335960559,1724644240316,-500.0,0.00010998,2]
[335960560,1724644240325,-500.0,0.00010998,2]
[335960562,1724644240334,-500.0,0.00010998,2]
[335960564,1724644240343,-500.0,0.00010998,2]
[335960566,1724644240352,-500.0,0.00010998,2]
[335960568,1724644240361,-500.0,0.00010998,2]
[335960570,1724644240370,-500.0,0.00010998,2]
[335960572,1724644240379,-500.0,0.00010998,2]
[335960574,1724644240388,-500.0,0.00010998,2]
[335960576,1724644240397,-500.0,0.00010998,2]
[335960578,1724644240406,-500.0,0.00010998,2]
[335960580,1724644240415,-500.0,0.00010998,2]
[335960582,1724644240424,-500.0,0.00010998,2]
[335960584,1724644240433,-500.0,0.00010998,2]
[335960587,1724644240443,-500.0,0.00010998,2]
[335960590,1724644240452,-500.0,0.00010998,2]
[335960592,1724644240461,-500.0,0.00010998,2]
[335960594,1724644240470,-500.0,0.00010998,2]
[335960596,1724644240479,-500.0,0.00010998,2]
[335960598,1724644240488,-386.03007581,0.00010998,2]
[335960600,1724644240497,-500.0,0.00010998,2]
[335960602,1724644240508,-648.25098367,0.00010998,2]
[335960604,1724644240518,-500.0,0.00010998,2]
[335960606,1724644240527,-1738.2,0.00010998,2]
[335960607,1724644240536,-1738.2,0.00010998,2]
[335960609,1724644240545,-1738.2,0.00010998,2]
[335960611,1724644240554,-1738.2,0.00010998,2]
[335960613,1724644240563,-1738.2,0.00010998,2]
[335960615,1724644240573,-500.0,0.00010998,2]
[335960617,1724644240583,-500.0,0.00010998,2]
[335960619,1724644240592,-500.0,0.00010998,2]
[335960621,1724644240600,-500.0,0.00010998,2]
[335960623,1724644240610,-500.0,0.00010998,2]
[335960625,1724644240620,-500.0,0.00010998,2]
[335960627,1724644240629,-500.0,0.00010998,2]
[335960629,1724644240637,-500.0,0.00010998,2]
[335960631,1724644240646,-500.0,0.00010998,2]
[335960633,1724644240656,-170.76435134,0.00010998,2]
[335960635,1724644240666,-5138.21,0.00010998,2]
[335960637,1724644240675,-5138.21,0.00010998,2]
[335960639,1724644240684,-5138.21,0.00010998,2]
[335960641,1724644240694,-5138.21,0.00010998,2]
[335960643,1724644240704,-5138.21,0.00010998,2]
[335960645,1724644240713,-5138.21,0.00010998,2]
[335960647,1724644240722,-5138.21,0.00010998,2]
[335960649,1724644240731,-5138.21,0.00010998,2]
[335960651,1724644240740,-5138.21,0.00010998,2]
[335960653,1724644240753,-5138.21,0.00010998,2]
[335960654,1724644240762,-5138.21,0.00010998,2]
[335960656,1724644240771,-5138.21,0.00010998,2]
[335960658,1724644240781,-5138.21,0.00010998,2]
[335960660,1724644240792,-500.0,0.00010998,2]
[335960662,1724644240802,-500.0,0.00010998,2]
[335960664,1724644240811,-500.0,0.00010998,2]
[335960666,1724644240820,-500.0,0.00010998,2]
[335960668,1724644240831,-500.0,0.00010998,2]
[335960670,1724644240840,-840.76,0.00010998,2]